[Event "*** Titled Tuesday Blitz"]
[Site "Chess.com"]
[Date "2020.04.07"]
[Round "7"]
[White "Cocaino74"]
[Black "Chesstrainer1"]
[Result "1-0"]
[WhiteElo "2285"]
[BlackElo "2429"]
[TimeControl "180+1"]
[EndTime "14:18:34 PDT"]
[Termination "Cocaino74 won on time"]

1. e4 {[%clk 0:03:00.9]} 1... c5 {[%clk 0:02:59.2]} 2. Nf3 {[%clk 0:03:01.4]}
2... e6 {[%clk 0:02:58.4]} 3. c3 {[%clk 0:03:01]} 3... Nf6 {[%clk 0:02:57.6]} 4.
e5 {[%clk 0:03:01.6]} 4... Nd5 {[%clk 0:02:58]} 5. g3 {[%clk 0:03:02.3]} 5...
Nc6 {[%clk 0:02:42.9]} 6. Bg2 {[%clk 0:03:02.2]} 6... d6 {[%clk 0:02:41.8]} 7.
d4 {[%clk 0:02:48.8]} 7... cxd4 {[%clk 0:02:40.5]} 8. cxd4 {[%clk 0:02:47.6]}
8... dxe5 {[%clk 0:02:38.9]} 9. dxe5 {[%clk 0:02:47.5]} 9... Bb4+ {[%clk
0:02:33.8]} 10. Bd2 {[%clk 0:02:46]} 10... O-O {[%clk 0:02:28.6]} 11. O-O {[%clk
0:02:45.7]} 11... Qb6 {[%clk 0:02:19.4]} 12. a3 {[%clk 0:02:40.6]} 12... Bxd2
{[%clk 0:02:15.1]} 13. Nbxd2 {[%clk 0:02:41.2]} 13... Qxb2 {[%clk 0:02:14.5]}
14. Nc4 {[%clk 0:02:40.7]} 14... Qb5 {[%clk 0:02:02.9]} 15. Nd6 {[%clk
0:02:37.6]} 15... Qa5 {[%clk 0:02:01.3]} 16. Qd3 {[%clk 0:02:23.7]} 16... Qc3
{[%clk 0:01:47.6]} 17. Qe2 {[%clk 0:02:16.9]} 17... Qa5 {[%clk 0:01:19.5]} 18.
Qd3 {[%clk 0:01:52.7]} 18... h6 {[%clk 0:01:14.8]} 19. Rfb1 {[%clk 0:01:52.1]}
19... b6 {[%clk 0:01:07.9]} 20. Rc1 {[%clk 0:01:29.1]} 20... Nce7 {[%clk
0:00:41]} 21. Nd2 {[%clk 0:01:18.5]} 21... Ba6 {[%clk 0:00:38.1]} 22. Qd4 {[%clk
0:01:07.6]} 22... b5 {[%clk 0:00:26.3]} 23. Nb3 {[%clk 0:01:03.8]} 23... Qb6
{[%clk 0:00:26]} 24. Nc5 {[%clk 0:01:02.8]} 24... Bb7 {[%clk 0:00:16.3]} 25.
Ndxb7 {[%clk 0:00:55]} 25... Nc6 {[%clk 0:00:12.7]} 26. Qb2 {[%clk 0:00:37.2]}
26... Rfe8 {[%clk 0:00:04.7]} 27. Nd6 {[%clk 0:00:35.4]} 27... Re7 {[%clk
0:00:04.2]} 28. Nf5 {[%clk 0:00:28.4]} 28... Rc7 {[%clk 0:00:02.3]} 29. Bxd5
{[%clk 0:00:28.5]} 29... exd5 {[%clk 0:00:01.9]} 30. e6 {[%clk 0:00:29.4]} 1-0

[Event "*** Titled Tuesday Blitz"]
[Site "Chess.com"]
[Date "2020.04.07"]
[Round "7"]
[White "MisiekZielony"]
[Black "ehrenfeld"]
[Result "0-1"]
[WhiteElo "2134"]
[BlackElo "2416"]
[TimeControl "180+1"]
[EndTime "14:18:34 PDT"]
[Termination "ehrenfeld won on time"]

1. c4 {[%clk 0:03:00.9]} 1... e5 {[%clk 0:02:59.6]} 2. Nc3 {[%clk 0:03:00.5]}
2... Bb4 {[%clk 0:02:57.6]} 3. Nf3 {[%clk 0:03:00.2]} 3... Bxc3 {[%clk
0:02:51.4]} 4. dxc3 {[%clk 0:03:00.1]} 4... d6 {[%clk 0:02:51.4]} 5. g3 {[%clk
0:02:55.9]} 5... f5 {[%clk 0:02:51]} 6. Bg2 {[%clk 0:02:55.6]} 6... Nf6 {[%clk
0:02:51.2]} 7. O-O {[%clk 0:02:55.3]} 7... O-O {[%clk 0:02:51.2]} 8. b3 {[%clk
0:02:52.9]} 8... Nc6 {[%clk 0:02:50]} 9. Ne1 {[%clk 0:02:48.4]} 9... Qe8 {[%clk
0:02:45.3]} 10. Nc2 {[%clk 0:02:44.3]} 10... Qh5 {[%clk 0:02:40.1]} 11. e3
{[%clk 0:02:43.9]} 11... Qf7 {[%clk 0:02:26.2]} 12. f3 {[%clk 0:02:42.2]} 12...
Be6 {[%clk 0:02:24.5]} 13. Nb4 {[%clk 0:02:17.8]} 13... Ne7 {[%clk 0:02:22.6]}
14. f4 {[%clk 0:02:16.7]} 14... e4 {[%clk 0:02:18.3]} 15. a4 {[%clk 0:01:51.4]}
15... c5 {[%clk 0:02:17.4]} 16. Nd5 {[%clk 0:01:51.3]} 16... Nexd5 {[%clk
0:02:16.4]} 17. cxd5 {[%clk 0:01:50.8]} 17... Nxd5 {[%clk 0:02:11.5]} 18. c4
{[%clk 0:01:42.4]} 18... Nb4 {[%clk 0:02:11.4]} 19. Bd2 {[%clk 0:01:12.7]} 19...
Nd3 {[%clk 0:02:10.2]} 20. Rb1 {[%clk 0:01:12.5]} 20... d5 {[%clk 0:02:09.8]}
21. cxd5 {[%clk 0:01:12]} 21... Bxd5 {[%clk 0:02:09.9]} 22. Bc3 {[%clk
0:01:11.1]} 22... Rad8 {[%clk 0:02:09.1]} 23. Qc2 {[%clk 0:01:11.1]} 23... h6
{[%clk 0:02:06.7]} 24. Rfd1 {[%clk 0:01:06.2]} 24... Kh7 {[%clk 0:02:06.4]} 25.
Ba1 {[%clk 0:01:04.4]} 25... Rd7 {[%clk 0:02:06.3]} 26. Qc3 {[%clk 0:01:02.4]}
26... Rfd8 {[%clk 0:02:05.8]} 27. Rf1 {[%clk 0:00:55.7]} 27... Be6 {[%clk
0:02:03.4]} 28. g4 {[%clk 0:00:54.8]} 28... h5 {[%clk 0:01:24.4]} 29. gxh5
{[%clk 0:00:49.7]} 29... Qxh5 {[%clk 0:01:22.1]} 30. Qc2 {[%clk 0:00:40.1]}
30... Bf7 {[%clk 0:01:15.9]} 31. Qc3 {[%clk 0:00:36]} 31... Qh6 {[%clk
0:01:14.5]} 32. Kh1 {[%clk 0:00:30.4]} 32... Rd6 {[%clk 0:01:13.2]} 33. Rbd1
{[%clk 0:00:27.2]} 33... Nf2+ {[%clk 0:01:08.7]} 34. Rxf2 {[%clk 0:00:25]} 34...
Rxd1+ {[%clk 0:01:08.3]} 35. Rf1 {[%clk 0:00:25.2]} 35... Rxf1+ {[%clk
0:01:07.3]} 36. Bxf1 {[%clk 0:00:25.3]} 36... Rd1 {[%clk 0:01:03.6]} 37. Kg2
{[%clk 0:00:25.1]} 37... Bh5 {[%clk 0:00:58.9]} 38. Kf2 {[%clk 0:00:21.8]} 38...
Bf3 {[%clk 0:00:56.9]} 39. Kg1 {[%clk 0:00:04.2]} 39... Qg6+ {[%clk 0:00:49.8]}
40. Kf2 {[%clk 0:00:03.4]} 40... Rxf1+ {[%clk 0:00:48.7]} 0-1

[Event "*** Titled Tuesday Blitz"]
[Site "Chess.com"]
[Date "2020.04.07"]
[Round "7"]
[White "Gordima"]
[Black "Mizner"]
[Result "1-0"]
[WhiteElo "2788"]
[BlackElo "2551"]
[TimeControl "180+1"]
[EndTime "14:18:35 PDT"]
[Termination "Gordima won on time"]

1. d4 {[%clk 0:03:00.5]} 1... d5 {[%clk 0:02:59.9]} 2. c4 {[%clk 0:03:00.8]}
2... e6 {[%clk 0:03:00.5]} 3. Nc3 {[%clk 0:03:00]} 3... Nf6 {[%clk 0:03:00.5]}
4. cxd5 {[%clk 0:02:59.9]} 4... Nxd5 {[%clk 0:03:00.4]} 5. e4 {[%clk 0:02:59.1]}
5... Nxc3 {[%clk 0:03:00.8]} 6. bxc3 {[%clk 0:03:00]} 6... c5 {[%clk 0:03:01.3]}
7. Rb1 {[%clk 0:03:00.1]} 7... cxd4 {[%clk 0:03:00.5]} 8. cxd4 {[%clk
0:03:00.5]} 8... Nc6 {[%clk 0:03:00.7]} 9. Nf3 {[%clk 0:03:00.7]} 9... Bb4+
{[%clk 0:03:00.3]} 10. Bd2 {[%clk 0:03:00.2]} 10... Bxd2+ {[%clk 0:03:00.4]} 11.
Qxd2 {[%clk 0:02:59.9]} 11... O-O {[%clk 0:03:00.8]} 12. Bb5 {[%clk 0:02:52.1]}
12... Bd7 {[%clk 0:02:52.7]} 13. O-O {[%clk 0:02:50.5]} 13... b6 {[%clk
0:02:43.7]} 14. h3 {[%clk 0:02:42.4]} 14... Ne7 {[%clk 0:02:24.6]} 15. Bd3
{[%clk 0:02:40.4]} 15... Rc8 {[%clk 0:02:20.1]} 16. Rfe1 {[%clk 0:02:26.3]}
16... Bc6 {[%clk 0:02:14.4]} 17. d5 {[%clk 0:02:20.3]} 17... exd5 {[%clk
0:02:06.1]} 18. e5 {[%clk 0:02:20.5]} 18... Bd7 {[%clk 0:01:53.8]} 19. Qg5
{[%clk 0:02:10.8]} 19... Ng6 {[%clk 0:01:32.6]} 20. Qh5 {[%clk 0:02:09]} 20...
Re8 {[%clk 0:01:23.2]} 21. Rbd1 {[%clk 0:02:05.9]} 21... Nf8 {[%clk 0:00:59.4]}
22. Ng5 {[%clk 0:01:59.2]} 22... g6 {[%clk 0:00:59.4]} 23. Qh6 {[%clk 0:01:59]}
23... f6 {[%clk 0:00:51.7]} 24. Nxh7 {[%clk 0:01:56.5]} 24... Rxe5 {[%clk
0:00:41]} 25. Bxg6 {[%clk 0:01:40.2]} 25... Qe7 {[%clk 0:00:28.8]} 26. Rxe5
{[%clk 0:01:23.2]} 26... fxe5 {[%clk 0:00:29.7]} 27. Ng5 {[%clk 0:01:21.9]}
27... Rc6 {[%clk 0:00:23.2]} 28. Bf7+ {[%clk 0:00:45.5]} 28... Qxf7 {[%clk
0:00:22.2]} 29. Nxf7 {[%clk 0:00:45.8]} 29... Rxh6 {[%clk 0:00:19.9]} 30. Nxh6+
{[%clk 0:00:46.7]} 30... Kg7 {[%clk 0:00:19.1]} 31. Ng4 {[%clk 0:00:46.3]} 31...
Bxg4 {[%clk 0:00:08.4]} 32. hxg4 {[%clk 0:00:47.2]} 32... d4 {[%clk 0:00:07]}
33. f4 {[%clk 0:00:45.7]} 33... Kf6 {[%clk 0:00:05.6]} 34. Kf2 {[%clk
0:00:30.7]} 34... Ne6 {[%clk 0:00:05.6]} 35. fxe5+ {[%clk 0:00:30.3]} 35... Kxe5
{[%clk 0:00:06.1]} 36. Kg3 {[%clk 0:00:26.2]} 36... Ng5 {[%clk 0:00:04.8]} 37.
Kh4 {[%clk 0:00:24.6]} 37... Ne4 {[%clk 0:00:03.6]} 38. g5 {[%clk 0:00:24.6]}
1-0

[Event "*** Titled Tuesday Blitz"]
[Site "Chess.com"]
[Date "2020.04.07"]
[Round "7"]
[White "AsselLesbekova"]
[Black "Vyacheslav_N"]
[Result "1-0"]
[WhiteElo "2320"]
[BlackElo "2426"]
[TimeControl "180+1"]
[EndTime "14:18:35 PDT"]
[Termination "AsselLesbekova won on time"]

1. e4 {[%clk 0:03:00.9]} 1... c5 {[%clk 0:03:00.9]} 2. Nf3 {[%clk 0:03:00.2]}
2... Nc6 {[%clk 0:02:44.5]} 3. Bb5 {[%clk 0:02:59.7]} 3... g6 {[%clk 0:02:42.5]}
4. O-O {[%clk 0:02:58.3]} 4... Bg7 {[%clk 0:02:42.8]} 5. Re1 {[%clk 0:02:58.5]}
5... Nf6 {[%clk 0:02:43.2]} 6. c3 {[%clk 0:02:58.4]} 6... O-O {[%clk 0:02:42.5]}
7. d4 {[%clk 0:02:58.5]} 7... cxd4 {[%clk 0:02:41.8]} 8. cxd4 {[%clk 0:02:59.4]}
8... d5 {[%clk 0:02:42.5]} 9. e5 {[%clk 0:02:57.7]} 9... Ne4 {[%clk 0:02:42.2]}
10. Nc3 {[%clk 0:02:58.2]} 10... Nxc3 {[%clk 0:02:41.7]} 11. bxc3 {[%clk
0:02:59.1]} 11... Na5 {[%clk 0:02:37.5]} 12. Ba3 {[%clk 0:02:53.7]} 12... a6
{[%clk 0:02:16.6]} 13. Bf1 {[%clk 0:02:52.7]} 13... b5 {[%clk 0:02:17.1]} 14.
Bb4 {[%clk 0:02:46.5]} 14... Re8 {[%clk 0:02:16.1]} 15. a4 {[%clk 0:02:44.8]}
15... Bd7 {[%clk 0:02:07.9]} 16. axb5 {[%clk 0:02:42.3]} 16... axb5 {[%clk
0:02:08.8]} 17. Qc2 {[%clk 0:02:36.5]} 17... Nc4 {[%clk 0:02:07.5]} 18. Bxc4
{[%clk 0:02:33.8]} 18... bxc4 {[%clk 0:01:30]} 19. Bc5 {[%clk 0:02:28]} 19... h6
{[%clk 0:01:27.6]} 20. Qb2 {[%clk 0:02:26.4]} 20... Bf5 {[%clk 0:01:09.9]} 21.
h3 {[%clk 0:02:23.6]} 21... g5 {[%clk 0:01:08.4]} 22. Rxa8 {[%clk 0:02:11.7]}
22... Qxa8 {[%clk 0:01:07.3]} 23. Ra1 {[%clk 0:02:12.2]} 23... Qb8 {[%clk
0:01:06]} 24. Qxb8 {[%clk 0:02:07.8]} 24... Rxb8 {[%clk 0:01:06.9]} 25. Bxe7
{[%clk 0:02:08.3]} 25... Bf8 {[%clk 0:00:59.4]} 26. Bxf8 {[%clk 0:01:28.8]}
26... Kxf8 {[%clk 0:01:00.3]} 27. Nd2 {[%clk 0:01:29.3]} 27... Rb2 {[%clk
0:00:28.7]} 28. Nf1 {[%clk 0:01:28]} 28... Rb3 {[%clk 0:00:19.4]} 29. Rc1 {[%clk
0:01:25]} 29... Be6 {[%clk 0:00:18.2]} 30. Ne3 {[%clk 0:01:21.3]} 30... Ke7
{[%clk 0:00:17.4]} 31. Kh2 {[%clk 0:01:19.6]} 31... Kd7 {[%clk 0:00:17.5]} 32.
g3 {[%clk 0:01:17.5]} 32... Kc6 {[%clk 0:00:17.7]} 33. f4 {[%clk 0:01:17.4]}
33... Kb5 {[%clk 0:00:15.6]} 34. f5 {[%clk 0:01:16.7]} 34... Rb2+ {[%clk
0:00:15.5]} 35. Kg1 {[%clk 0:01:13.6]} 35... Bd7 {[%clk 0:00:12.3]} 36. Rf1
{[%clk 0:01:08.3]} 36... Re2 {[%clk 0:00:11.5]} 37. Nxd5 {[%clk 0:01:07.1]}
37... Bc6 {[%clk 0:00:11.8]} 38. Rb1+ {[%clk 0:00:38]} 1-0

[Event "*** Titled Tuesday Blitz"]
[Site "Chess.com"]
[Date "2020.04.07"]
[Round "7"]
[White "Bajecny"]
[Black "korbul"]
[Result "1-0"]
[WhiteElo "2299"]
[BlackElo "2563"]
[TimeControl "180+1"]
[EndTime "14:18:39 PDT"]
[Termination "Bajecny won by resignation"]

1. d4 {[%clk 0:02:59.1]} 1... Nf6 {[%clk 0:02:59]} 2. Nf3 {[%clk 0:02:58.8]}
2... b6 {[%clk 0:02:58]} 3. c4 {[%clk 0:02:58.8]} 3... e6 {[%clk 0:02:57.7]} 4.
a3 {[%clk 0:02:58.9]} 4... c5 {[%clk 0:02:54.6]} 5. d5 {[%clk 0:02:57.7]} 5...
b5 {[%clk 0:02:54.5]} 6. Bg5 {[%clk 0:02:56.6]} 6... Qb6 {[%clk 0:02:48.4]} 7.
Bxf6 {[%clk 0:02:56.1]} 7... gxf6 {[%clk 0:02:46.8]} 8. e4 {[%clk 0:02:46.8]}
8... bxc4 {[%clk 0:02:45.8]} 9. Qc2 {[%clk 0:02:46.9]} 9... Ba6 {[%clk 0:02:39]}
10. Nc3 {[%clk 0:02:46.6]} 10... Qb3 {[%clk 0:02:35.2]} 11. Rc1 {[%clk
0:02:37.9]} 11... d6 {[%clk 0:02:29.5]} 12. Nd2 {[%clk 0:02:34.8]} 12... Qxc2
{[%clk 0:02:27]} 13. Rxc2 {[%clk 0:02:35.7]} 13... Nd7 {[%clk 0:02:26.9]} 14.
Bxc4 {[%clk 0:02:35.5]} 14... Bxc4 {[%clk 0:02:24]} 15. Nxc4 {[%clk 0:02:36.4]}
15... Ne5 {[%clk 0:01:53.3]} 16. Na5 {[%clk 0:02:16.6]} 16... Rb8 {[%clk
0:01:41.9]} 17. Ke2 {[%clk 0:02:16.9]} 17... h5 {[%clk 0:01:22]} 18. f4 {[%clk
0:02:16.2]} 18... Nd7 {[%clk 0:01:20.6]} 19. Nc6 {[%clk 0:02:14.4]} 19... Rb7
{[%clk 0:01:20.1]} 20. b4 {[%clk 0:02:09.8]} 20... h4 {[%clk 0:01:14.3]} 21. Rb1
{[%clk 0:02:09]} 21... Bh6 {[%clk 0:01:09.6]} 22. Kf3 {[%clk 0:02:08.9]} 22...
cxb4 {[%clk 0:00:53.6]} 23. Rxb4 {[%clk 0:02:05.5]} 23... Rxb4 {[%clk
0:00:52.3]} 24. axb4 {[%clk 0:02:06.4]} 24... Nb6 {[%clk 0:00:41.5]} 25. Ra2
{[%clk 0:02:04.5]} 25... O-O {[%clk 0:00:36.7]} 26. Rxa7 {[%clk 0:02:03]} 26...
f5 {[%clk 0:00:36.5]} 27. exf5 {[%clk 0:01:58.8]} 27... Bg7 {[%clk 0:00:27.8]}
28. Ne4 {[%clk 0:01:33]} 28... Nxd5 {[%clk 0:00:26.6]} 29. Nxd6 {[%clk
0:01:28.7]} 29... exf5 {[%clk 0:00:20]} 30. Nxf5 {[%clk 0:01:26.5]} 30... Bc3
{[%clk 0:00:19.5]} 31. b5 {[%clk 0:01:26]} 31... Re8 {[%clk 0:00:18.4]} 32. Rd7
{[%clk 0:01:23.5]} 32... Nb6 {[%clk 0:00:16.9]} 33. Rd8 {[%clk 0:01:23.7]} 33...
Rxd8 {[%clk 0:00:16.5]} 34. Nxd8 {[%clk 0:01:24.6]} 34... f6 {[%clk 0:00:17.3]}
35. Ne6 {[%clk 0:01:23.8]} 35... Kf7 {[%clk 0:00:17.2]} 36. Nc5 {[%clk
0:01:23.9]} 36... Nd5 {[%clk 0:00:16.6]} 37. Nxh4 {[%clk 0:01:22.9]} 37... Bd4
{[%clk 0:00:16.8]} 38. Ne4 {[%clk 0:01:22.4]} 38... Ke6 {[%clk 0:00:15.7]} 39.
f5+ {[%clk 0:01:21.4]} 39... Ke5 {[%clk 0:00:15.9]} 40. g4 {[%clk 0:01:21.2]}
40... Nc3 {[%clk 0:00:14]} 41. Ng6+ {[%clk 0:01:21.3]} 41... Kd5 {[%clk
0:00:14.4]} 42. h4 {[%clk 0:01:21]} 42... Nxe4 {[%clk 0:00:13.9]} 43. h5 {[%clk
0:01:19.9]} 43... Ng5+ {[%clk 0:00:13.6]} 44. Kg3 {[%clk 0:01:18.7]} 44... Ke4
{[%clk 0:00:13.6]} 45. h6 {[%clk 0:01:18.7]} 45... Ke3 {[%clk 0:00:13.6]} 46.
Nf8 {[%clk 0:01:18.3]} 46... Bc5 {[%clk 0:00:13.2]} 47. h7 {[%clk 0:01:17.9]}
47... Bd6+ {[%clk 0:00:14.1]} 48. Kh4 {[%clk 0:01:16.9]} 48... Nxh7 {[%clk
0:00:12.4]} 49. Nxh7 {[%clk 0:01:17.8]} 49... Be5 {[%clk 0:00:11]} 50. b6 {[%clk
0:01:18]} 50... Kf4 {[%clk 0:00:10.8]} 51. b7 {[%clk 0:01:17.7]} 51... Bb8
{[%clk 0:00:10.4]} 52. Nxf6 {[%clk 0:01:17.7]} 52... Ke5 {[%clk 0:00:11.3]} 53.
Nd7+ {[%clk 0:01:17.8]} 53... Kd6 {[%clk 0:00:11.7]} 54. Nxb8 {[%clk 0:01:18.7]}
54... Kc7 {[%clk 0:00:12.6]} 55. Na6+ {[%clk 0:01:18.7]} 55... Kxb7 {[%clk
0:00:12.1]} 56. Nb4 {[%clk 0:01:19.6]} 56... Kc7 {[%clk 0:00:12]} 57. Kg5 {[%clk
0:01:20.5]} 57... Kd6 {[%clk 0:00:12.9]} 58. Kg6 {[%clk 0:01:21.2]} 58... Ke7
{[%clk 0:00:13.8]} 59. f6+ {[%clk 0:01:21.1]} 59... Kf8 {[%clk 0:00:13.4]} 60.
Nd5 {[%clk 0:01:22]} 60... Kg8 {[%clk 0:00:14.3]} 61. Ne7+ {[%clk 0:01:21.8]}
61... Kf8 {[%clk 0:00:14.4]} 62. f7 {[%clk 0:01:22.2]} 62... Kxe7 {[%clk
0:00:14.4]} 63. Kg7 {[%clk 0:01:23.1]} 1-0

[Event "*** Titled Tuesday Blitz"]
[Site "Chess.com"]
[Date "2020.04.07"]
[Round "7"]
[White "matiss90"]
[Black "kleinebeer98"]
[Result "0-1"]
[WhiteElo "2530"]
[BlackElo "2722"]
[TimeControl "180+1"]
[EndTime "14:18:40 PDT"]
[Termination "kleinebeer98 won by checkmate"]

1. e4 {[%clk 0:03:00.9]} 1... e5 {[%clk 0:02:59.7]} 2. Nf3 {[%clk 0:03:00.8]}
2... Nc6 {[%clk 0:03:00.3]} 3. Bb5 {[%clk 0:03:00.8]} 3... f5 {[%clk 0:03:00.7]}
4. d3 {[%clk 0:02:55.2]} 4... fxe4 {[%clk 0:03:00.6]} 5. dxe4 {[%clk 0:02:55.2]}
5... Nf6 {[%clk 0:03:01.2]} 6. Nc3 {[%clk 0:02:52.2]} 6... Bb4 {[%clk
0:03:01.1]} 7. Qd3 {[%clk 0:02:48.7]} 7... Bxc3+ {[%clk 0:03:00.1]} 8. bxc3
{[%clk 0:02:47.3]} 8... d6 {[%clk 0:03:00.1]} 9. Bg5 {[%clk 0:02:45.4]} 9... O-O
{[%clk 0:02:59.4]} 10. Bc4+ {[%clk 0:02:31.6]} 10... Kh8 {[%clk 0:02:53.4]} 11.
h4 {[%clk 0:02:27.7]} 11... h6 {[%clk 0:02:42.5]} 12. Bb3 {[%clk 0:02:09.9]}
12... Na5 {[%clk 0:02:33.6]} 13. O-O-O {[%clk 0:02:08]} 13... Qe8 {[%clk
0:02:22.2]} 14. Bd2 {[%clk 0:01:49.8]} 14... Bg4 {[%clk 0:02:13.6]} 15. Rde1
{[%clk 0:01:34]} 15... Nd7 {[%clk 0:02:12.1]} 16. Ng5 {[%clk 0:01:22.1]} 16...
Nxb3+ {[%clk 0:02:00.8]} 17. axb3 {[%clk 0:01:15.7]} 17... hxg5 {[%clk
0:02:01.1]} 18. hxg5+ {[%clk 0:01:15.4]} 18... Kg8 {[%clk 0:02:01.5]} 19. Qg3
{[%clk 0:01:10.7]} 19... Be6 {[%clk 0:01:40.4]} 20. g6 {[%clk 0:00:59.2]} 20...
Rf6 {[%clk 0:01:40.2]} 21. Rh8+ {[%clk 0:00:13.2]} 21... Kxh8 {[%clk 0:01:38.8]}
22. Qh4+ {[%clk 0:00:13.3]} 22... Kg8 {[%clk 0:01:20.4]} 23. Qh7+ {[%clk
0:00:14.2]} 23... Kf8 {[%clk 0:01:14.1]} 24. Qh8+ {[%clk 0:00:10.6]} 24... Bg8
{[%clk 0:00:39]} 25. Re3 {[%clk 0:00:10.3]} 25... Qxg6 {[%clk 0:00:36.3]} 26.
Rh3 {[%clk 0:00:03.3]} 26... Rxf2 {[%clk 0:00:31.2]} 27. Be3 {[%clk 0:00:03]}
27... Rxg2 {[%clk 0:00:29.1]} 28. Rf3+ {[%clk 0:00:02.7]} 28... Nf6 {[%clk
0:00:29.5]} 29. Qh4 {[%clk 0:00:02.2]} 29... Ke8 {[%clk 0:00:26.8]} 30. Bg5
{[%clk 0:00:01.9]} 30... Qxe4 {[%clk 0:00:25.7]} 31. Bxf6 {[%clk 0:00:01.1]}
31... Qxc2# {[%clk 0:00:25.5]} 0-1

[Event "*** Titled Tuesday Blitz"]
[Site "Chess.com"]
[Date "2020.04.07"]
[Round "7"]
[White "rynos0411"]
[Black "eldur16"]
[Result "1/2-1/2"]
[WhiteElo "2393"]
[BlackElo "2544"]
[TimeControl "180+1"]
[EndTime "14:18:40 PDT"]
[Termination "Game drawn by agreement"]

1. d4 {[%clk 0:03:00.9]} 1... Nf6 {[%clk 0:02:58.9]} 2. c4 {[%clk 0:02:59.8]}
2... e6 {[%clk 0:02:58.9]} 3. Nf3 {[%clk 0:02:56.9]} 3... Bb4+ {[%clk
0:02:58.6]} 4. Bd2 {[%clk 0:02:47.4]} 4... c5 {[%clk 0:02:55.5]} 5. e3 {[%clk
0:02:44.3]} 5... Bxd2+ {[%clk 0:02:52.7]} 6. Nbxd2 {[%clk 0:02:42.5]} 6... cxd4
{[%clk 0:02:51.1]} 7. exd4 {[%clk 0:02:41.6]} 7... d5 {[%clk 0:02:50.3]} 8. cxd5
{[%clk 0:02:40]} 8... Nxd5 {[%clk 0:02:48.6]} 9. Rc1 {[%clk 0:02:38.1]} 9... O-O
{[%clk 0:02:46.2]} 10. g3 {[%clk 0:02:27.4]} 10... b6 {[%clk 0:02:45.6]} 11. Bg2
{[%clk 0:02:26.1]} 11... Bb7 {[%clk 0:02:40.7]} 12. O-O {[%clk 0:02:25.8]} 12...
Nd7 {[%clk 0:02:40.4]} 13. Nc4 {[%clk 0:02:22.9]} 13... N7f6 {[%clk 0:02:39.4]}
14. Nfe5 {[%clk 0:02:21.2]} 14... Rc8 {[%clk 0:02:39.1]} 15. Qb3 {[%clk
0:02:08.2]} 15... Qe7 {[%clk 0:02:37.1]} 16. Rfd1 {[%clk 0:02:06.3]} 16... Rc7
{[%clk 0:02:36.6]} 17. Ne3 {[%clk 0:02:00.7]} 17... Rfc8 {[%clk 0:02:33.2]} 18.
Rxc7 {[%clk 0:01:58.4]} 18... Qxc7 {[%clk 0:02:31.9]} 19. Nxd5 {[%clk
0:01:57.6]} 19... Bxd5 {[%clk 0:02:31.1]} 20. Bxd5 {[%clk 0:01:57.6]} 20... Nxd5
{[%clk 0:02:31.1]} 21. Qa4 {[%clk 0:01:54]} 21... Qc2 {[%clk 0:02:26.4]} 22.
Qxc2 {[%clk 0:01:51.8]} 22... Rxc2 {[%clk 0:02:25.3]} 23. Rb1 {[%clk 0:01:52.7]}
23... f6 {[%clk 0:02:20.8]} 24. Nf3 {[%clk 0:01:49.9]} 24... Kf7 {[%clk
0:02:19.2]} 25. Kg2 {[%clk 0:01:41.3]} 25... g5 {[%clk 0:02:12]} 26. Ne1 {[%clk
0:01:41.3]} 26... Re2 {[%clk 0:02:05.7]} 27. Kf1 {[%clk 0:01:36.1]} 27... Rd2
{[%clk 0:02:02.7]} 28. Rc1 {[%clk 0:01:12.6]} 28... Rxb2 {[%clk 0:02:01]} 29.
Rc8 {[%clk 0:01:12.3]} 29... Rxa2 {[%clk 0:02:00.2]} 30. Rh8 {[%clk 0:01:06.6]}
30... a5 {[%clk 0:01:51.1]} 31. Rxh7+ {[%clk 0:01:05.8]} 31... Kg6 {[%clk
0:01:50.7]} 32. Ra7 {[%clk 0:01:05.4]} 32... a4 {[%clk 0:01:44.4]} 33. Kg2
{[%clk 0:01:03.5]} 33... g4 {[%clk 0:01:41]} 34. h3 {[%clk 0:01:03.3]} 34... f5
{[%clk 0:01:32.5]} 35. hxg4 {[%clk 0:01:02.9]} 35... fxg4 {[%clk 0:01:32.1]} 36.
Nd3 {[%clk 0:01:03.8]} 36... a3 {[%clk 0:01:09.2]} 37. Ne5+ {[%clk 0:01:02]}
37... Kf5 {[%clk 0:01:08.6]} 38. Rf7+ {[%clk 0:01:01.4]} 38... Ke4 {[%clk
0:01:07.8]} 39. Nxg4 {[%clk 0:01:01.5]} 39... Rb2 {[%clk 0:00:59.5]} 40. Ra7
{[%clk 0:00:48.9]} 40... a2 {[%clk 0:00:59.1]} 41. Kh3 {[%clk 0:00:49.4]} 41...
Nc3 {[%clk 0:00:54.2]} 42. f3+ {[%clk 0:00:43.7]} 42... Kxf3 {[%clk 0:00:49.4]}
43. Ne5+ {[%clk 0:00:43.7]} 43... Ke4 {[%clk 0:00:48.6]} 44. Nc4 {[%clk
0:00:43.8]} 44... Kxd4 {[%clk 0:00:44.5]} 45. Nxb2 {[%clk 0:00:42.8]} 45... b5
{[%clk 0:00:42.7]} 46. Kg2 {[%clk 0:00:41.6]} 46... Na4 {[%clk 0:00:41.9]} 47.
Rd7+ {[%clk 0:00:32.9]} 47... Kc3 {[%clk 0:00:37.6]} 48. Nxa4+ {[%clk
0:00:32.3]} 48... bxa4 {[%clk 0:00:37.1]} 49. Rd1 {[%clk 0:00:29.1]} 49... Kb2
{[%clk 0:00:35.3]} 50. g4 {[%clk 0:00:28.4]} 50... a1=Q {[%clk 0:00:33.9]} 51.
Rxa1 {[%clk 0:00:28.9]} 51... Kxa1 {[%clk 0:00:34]} 52. g5 {[%clk 0:00:29.8]}
52... a3 {[%clk 0:00:34.1]} 53. g6 {[%clk 0:00:30.7]} 53... a2 {[%clk
0:00:34.2]} 54. g7 {[%clk 0:00:31.6]} 54... Kb1 {[%clk 0:00:32.9]} 55. g8=Q
{[%clk 0:00:32.5]} 55... a1=Q {[%clk 0:00:32.3]} 56. Qxe6 {[%clk 0:00:32.1]}
56... Qb2+ {[%clk 0:00:31.9]} 1/2-1/2